bitfinex/quotes_BTCUSD_20250903
["timestamp","ask_amount","ask_price","bid_price","bid_amount"]
[1756923305208,1.53645318,112570.0,112560.0,0.0011406]
[1756923306657,1.44453719,112570.0,112560.0,0.0011406]
[1756923308059,1.46547601,112570.0,112560.0,0.0011406]
[1756923308252,1.31523601,112570.0,112560.0,0.0011406]
[1756923308435,1.51547601,112570.0,112560.0,0.0011406]
[1756923308649,1.51547601,112570.0,112560.0,1e-08]
[1756923308850,1.65639199,112570.0,112560.0,1e-08]
[1756923309328,0.53862183,112560.0,112550.0,0.0004]
[1756923309527,1.3343218,112560.0,112550.0,0.00052483]
[1756923309755,1.3630418,112560.0,112550.0,0.00052483]
[1756923309931,1.45495779,112560.0,112550.0,0.00052483]
[1756923310787,1.45895779,112560.0,112550.0,0.00152483]
[1756923311206,1.60919779,112560.0,112550.0,0.00152483]
[1756923311644,1.61219779,112560.0,112550.0,0.00152483]
[1756923311872,1.56219779,112560.0,112550.0,0.00152483]
[1756923312051,1.56576017,112560.0,112550.0,0.00152483]
[1756923312675,1.60647527,112560.0,112550.0,0.00152483]
[1756923312908,1.46999046,112560.0,112550.0,0.00152483]
[1756923313320,0.97668046,112560.0,112550.0,0.00361483]
[1756923313727,0.99428937,112560.0,112550.0,0.00361483]
[1756923313941,1.33735937,112560.0,112550.0,0.00152483]
[1756923314372,1.18711937,112560.0,112550.0,0.00152483]
[1756923314571,1.33735937,112560.0,112550.0,0.00152483]
[1756923315934,1.33428937,112560.0,112550.0,0.00361483]
[1756923316721,1.33735937,112560.0,112550.0,0.00152483]
[1756923317126,1.42927536,112560.0,112550.0,0.00152483]
[1756923321726,1.47003449,112560.0,112550.0,0.00152483]
[1756923322584,1.27394536,112560.0,112550.0,0.00361483]
[1756923322765,1.27394536,112560.0,112550.0,0.00685483]
[1756923322969,1.42418536,112560.0,112550.0,0.00685483]
[1756923323151,1.27394536,112560.0,112550.0,0.00685483]
[1756923323354,1.42418536,112560.0,112550.0,0.00685483]
[1756923323755,1.42620536,112560.0,112550.0,0.00685483]
[1756923323959,1.42620536,112560.0,112550.0,0.00361483]
[1756923324204,1.42620536,112560.0,112550.0,0.00152483]
[1756923324205,1.42927536,112560.0,112550.0,0.00152483]
[1756923325125,1.27596536,112560.0,112550.0,0.00361483]
[1756923325283,1.42927536,112560.0,112550.0,0.00152483]
[1756923328547,1.50568679,112560.0,112550.0,0.00152483]
[1756923328744,1.52931679,112560.0,112550.0,0.00152483]
[1756923328952,1.55025561,112560.0,112550.0,0.00152483]
[1756923329151,1.60025561,112560.0,112550.0,1e-08]
[1756923329364,0.17771459,112540.0,112530.0,0.0004]
[1756923329565,1.02823226,112540.0,112530.0,0.00086904]
[1756923329774,1.03332226,112540.0,112530.0,0.00086904]
[1756923330016,0.88308226,112540.0,112530.0,0.00086904]
[1756923330455,0.9881136,112540.0,112530.0,0.00186904]
[1756923330643,0.9901136,112540.0,112530.0,0.00186904]
[1756923331517,0.8398736,112540.0,112530.0,0.00186904]
[1756923331740,0.9901136,112540.0,112530.0,0.00186904]
[1756923331899,0.9991498,112540.0,112530.0,0.00186904]
[1756923332507,1.09106579,112540.0,112530.0,0.00186904]
[1756923334443,1.11469579,112540.0,112530.0,0.00186904]
[1756923338150,0.96445579,112540.0,112530.0,0.00186904]
[1756923338358,1.11469579,112540.0,112530.0,0.00186904]
[1756923340754,0.96445579,112540.0,112530.0,0.00186904]
[1756923340950,1.11469579,112540.0,112530.0,0.00186904]
[1756923342868,0.94082579,112540.0,112530.0,0.00186904]
[1756923343266,1.09106579,112540.0,112530.0,0.00186904]
[1756923343503,1.69725762,112540.0,112530.0,0.00186904]
[1756923344115,1.70041762,112540.0,112530.0,0.00186904]
[1756923345281,2.14911762,112540.0,112530.0,0.00186904]
[1756923346153,1.99887762,112540.0,112530.0,0.00186904]
[1756923346315,2.14911762,112540.0,112530.0,0.00186904]
[1756923347772,1.99887762,112540.0,112530.0,0.00186904]
[1756923347981,1.99571762,112540.0,112530.0,0.00398904]
[1756923348243,2.14595762,112540.0,112530.0,0.00398904]
[1756923348465,2.14911762,112540.0,112530.0,0.00186904]
[1756923348793,1.99571762,112540.0,112530.0,0.00398904]
[1756923348992,2.14595762,112540.0,112530.0,0.00398904]
[1756923349197,2.14911762,112540.0,112530.0,0.00186904]
[1756923349885,3.61571085,112540.0,112530.0,1e-08]
[1756923350108,3.64011085,112540.0,112530.0,1e-08]
[1756923350836,0.41093882,112530.0,112520.0,1e-08]
[1756923351057,3.1457574,112530.0,112520.0,1e-08]
[1756923351264,3.1478874,112530.0,112520.0,1e-08]
[1756923351470,3.15726612,112530.0,112520.0,1e-08]
[1756923352038,0.53868499,112520.0,112510.0,0.0004]
[1756923352227,2.93470744,112520.0,112510.0,0.0004]
[1756923352431,3.02875343,112520.0,112510.0,0.0004]
[1756923352634,3.03191343,112520.0,112510.0,0.0004]
[1756923353190,1.95888373,112520.0,112510.0,0.0004]
[1756923353366,1.96288373,112520.0,112510.0,0.0014]
[1756923353581,1.35380358,112520.0,112510.0,0.0014]
[1756923353767,1.35580358,112520.0,112510.0,0.0014]
[1756923355071,1.80450358,112520.0,112510.0,0.0014]
[1756923356290,1.82360785,112520.0,112510.0,0.0014]
[1756923357068,1.67268785,112520.0,112510.0,0.0014]
[1756923357331,1.80122358,112520.0,112510.0,0.0014]
[1756923357963,1.80122358,112520.0,112510.0,0.00352]
[1756923358231,1.80118358,112520.0,112510.0,0.00661]
[1756923358810,1.80118358,112520.0,112510.0,0.00352]
[1756923359542,1.80118358,112520.0,112510.0,0.0014]
[1756923359765,1.80434358,112520.0,112510.0,0.0014]
[1756923360375,1.80118358,112520.0,112510.0,0.00352]
[1756923360846,1.80118358,112520.0,112510.0,0.00661]
[1756923361067,1.80118358,112520.0,112510.0,0.00352]
[1756923361802,1.1807805,112520.0,112510.0,0.00661]
[1756923362006,1.80106358,112520.0,112510.0,0.00661]
[1756923362212,1.80106358,112520.0,112510.0,0.00352]
[1756923362829,1.80422358,112520.0,112510.0,0.0014]
[1756923363210,1.80106358,112520.0,112510.0,0.00352]
[1756923363448,1.80422358,112520.0,112510.0,0.0014]
[1756923363679,1.62735476,112520.0,112510.0,0.00661]
[1756923363902,1.68607877,112520.0,112510.0,0.00661]
[1756923364138,1.53543877,112520.0,112510.0,0.00661]
[1756923364363,1.34611877,112520.0,112510.0,0.00661]
[1756923364583,1.68611877,112520.0,112510.0,0.00661]
[1756923367608,1.21860569,112520.0,112510.0,0.00661]
[1756923367854,1.68611877,112520.0,112510.0,0.00661]
[1756923369444,1.21860569,112520.0,112510.0,0.00661]
[1756923369637,1.68611877,112520.0,112510.0,0.00661]
[1756923370766,1.21860569,112520.0,112510.0,0.00661]
[1756923371062,1.68611877,112520.0,112510.0,0.00661]
[1756923372106,1.68818877,112520.0,112510.0,0.00661]
[1756923372376,1.7016425,112520.0,112510.0,0.0014]
[1756923372804,1.72258132,112520.0,112510.0,0.0014]
[1756923373012,1.77258132,112520.0,112510.0,1e-08]
[1756923373225,1.81475237,112520.0,112510.0,1e-08]
[1756923373606,2.42441833,112520.0,112510.0,1e-08]
[1756923376895,2.46355428,112520.0,112510.0,1e-08]
[1756923378776,2.46331428,112520.0,112510.0,1e-08]
[1756923382417,1.27589563,112500.0,112490.0,0.0004]
[1756923382693,1.67844761,112500.0,112490.0,0.0004]
[1756923382936,1.68051761,112500.0,112490.0,0.0004]
[1756923383178,1.68408171,112500.0,112490.0,0.00549]
[1756923383679,1.53472171,112500.0,112490.0,0.00649]
[1756923383897,1.68704171,112500.0,112490.0,0.00154068]
[1756923384127,1.69104171,112500.0,112490.0,0.00054068]
[1756923384311,2.03104171,112500.0,112490.0,0.00054068]
[1756923384509,2.03204171,112500.0,112490.0,0.00054068]
[1756923385381,2.02804171,112500.0,112490.0,0.00054068]
[1756923385590,2.03104171,112500.0,112490.0,0.00054068]
[1756923388444,3.12838858,112500.0,112490.0,1e-08]
[1756923388668,2.07033146,112500.0,112490.0,1e-08]
[1756923389406,1.91997146,112500.0,112490.0,1e-08]
[1756923389636,2.05028363,112500.0,112490.0,1e-08]
[1756923390780,2.10028363,112500.0,112490.0,1e-08]
[1756923391428,2.08116171,112500.0,112490.0,1e-08]
[1756923391656,1.96181473,112500.0,112490.0,1e-08]
[1756923391857,1.81133473,112500.0,112490.0,1e-08]
[1756923392060,1.96177473,112500.0,112490.0,1e-08]
[1756923392392,1.81133473,112500.0,112490.0,1e-08]
[1756923392611,1.3294587,112500.0,112490.0,0.00208001]
[1756923392831,1.4798587,112500.0,112490.0,0.00208001]
[1756923393451,1.4828187,112500.0,112490.0,1e-08]
[1756923395351,1.4827387,112500.0,112490.0,1e-08]
[1756923396497,1.35153305,112500.0,112490.0,1e-08]
[1756923396715,1.50185305,112500.0,112490.0,1e-08]
[1756923397725,1.35153305,112500.0,112490.0,1e-08]
[1756923397925,1.50185305,112500.0,112490.0,1e-08]
[1756923398874,1.52202088,112500.0,112490.0,1e-08]
[1756923399098,1.85061691,112500.0,112490.0,1e-08]
[1756923399331,2.00093691,112500.0,112490.0,1e-08]
[1756923399544,1.37170088,112500.0,112490.0,1e-08]
[1756923399755,1.2794587,112500.0,112490.0,0.00498001]
[1756923399965,1.4277087,112500.0,112490.0,0.00498001]
[1756923400186,1.4296987,112500.0,112490.0,0.00197001]
[1756923400332,1.4488305,112500.0,112490.0,0.00197001]
[1756923400555,0.81760447,112500.0,112490.0,0.00498001]
[1756923400751,1.16453389,112500.0,112490.0,0.00498001]
[1756923400955,1.31485389,112500.0,112490.0,0.00498001]
[1756923401160,0.97485389,112500.0,112490.0,0.00498001]
[1756923401580,1.31485389,112500.0,112490.0,0.00498001]
[1756923401787,0.68561786,112500.0,112490.0,0.00498001]
[1756923401983,1.16453389,112500.0,112490.0,0.00498001]
[1756923402184,1.31485389,112500.0,112490.0,0.00498001]
[1756923402929,1.16453389,112500.0,112490.0,0.00498001]
[1756923403153,1.31485389,112500.0,112490.0,0.00498001]
[1756923403351,0.83593786,112500.0,112490.0,0.00498001]
[1756923403565,1.16453389,112500.0,112490.0,0.00498001]
[1756923403718,0.83593786,112500.0,112490.0,0.00498001]
[1756923403933,1.2229379,112500.0,112490.0,0.00498001]
[1756923404148,0.52534187,112500.0,112490.0,0.00498001]
[1756923404462,0.67566187,112500.0,112490.0,0.00498001]
[1756923405145,0.18534187,112500.0,112490.0,0.18277359]
[1756923405584,0.0075641,112500.0,112490.0,0.18277359]
[1756923405850,0.0075641,112500.0,112490.0,0.77819561]
[1756923406320,0.26918282,112540.0,112520.0,0.17773555]
[1756923406551,0.17773038,112530.0,112520.0,0.17995737]
[1756923406725,0.17773038,112530.0,112520.0,0.18192737]
[1756923407134,0.17773038,112530.0,112520.0,0.18493737]
[1756923407352,0.44629906,112540.0,112520.0,0.18271555]
[1756923407353,0.28686286,112540.0,112520.0,0.18271555]
[1756923407524,0.02671624,112540.0,112530.0,0.66187803]
[1756923407725,0.33694374,112550.0,112540.0,0.17771459]
[1756923407934,0.21329615,112550.0,112540.0,0.00498]
[1756923408139,0.55329615,112550.0,112540.0,0.00498]
[1756923408340,0.70365615,112550.0,112540.0,0.00498]
[1756923408772,0.70412424,112550.0,112540.0,0.00498]
[1756923408980,0.71283639,112550.0,112540.0,0.00498]
[1756923409200,0.71279639,112550.0,112540.0,0.00598]
[1756923410712,1.19171242,112550.0,112540.0,0.00598]
[1756923411577,1.19271242,112550.0,112540.0,0.00598]
[1756923413564,1.19470242,112550.0,112540.0,0.00598]
[1756923413791,1.28958841,112550.0,112540.0,0.001]
[1756923414711,0.71479639,112550.0,112540.0,0.00598]
[1756923415352,0.55476424,112550.0,112540.0,0.00598]
[1756923415567,0.71486142,112550.0,112540.0,0.00598]
[1756923415996,1.19873745,112550.0,112540.0,0.001]
[1756923416626,1.19576745,112550.0,112540.0,0.001]
[1756923417052,1.29065344,112550.0,112540.0,0.001]
[1756923420717,1.13929344,112550.0,112540.0,0.001]
[1756923420932,1.29077344,112550.0,112540.0,0.001]
[1756923421171,1.28780344,112550.0,112540.0,0.001]
[1756923421583,1.28780344,112550.0,112540.0,0.00297]
[1756923422146,0.65740741,112550.0,112540.0,0.00297]
[1756923422332,1.13632344,112550.0,112540.0,0.00297]
[1756923422535,1.28776344,112550.0,112540.0,0.00297]
[1756923422875,1.13632344,112550.0,112540.0,0.00297]
[1756923423037,0.71494142,112550.0,112540.0,0.00598]
[1756923423237,0.56350142,112550.0,112540.0,0.00598]
[1756923423892,0.56549142,112550.0,112540.0,0.00598]
[1756923424102,1.04440745,112550.0,112540.0,0.00598]
[1756923425359,1.19385745,112550.0,112540.0,0.00598]
[1756923425601,0.71494142,112550.0,112540.0,0.00598]
[1756923425839,1.19385745,112550.0,112540.0,0.00598]
[1756923426072,0.71494142,112550.0,112540.0,0.00598]
[1756923426301,1.19584745,112550.0,112540.0,0.00598]
[1756923426497,1.19584745,112550.0,112540.0,0.00297]
[1756923427747,0.71494142,112550.0,112540.0,0.00598]
[1756923427988,0.21476424,112550.0,112540.0,0.00598]
[1756923428206,0.0281805,112550.0,112540.0,0.66483205]
[1756923428458,0.0281805,112550.0,112540.0,0.75452661]
[1756923428459,0.00146809,112550.0,112540.0,0.75452661]
[1756923430147,0.00146809,112550.0,112540.0,1.15452661]
[1756923432714,0.00046809,112550.0,112540.0,1.15452661]
[1756923432920,0.00046809,112550.0,112540.0,0.67561058]
[1756923433180,0.00046809,112550.0,112540.0,1.15452661]
[1756923433573,0.00046809,112550.0,112540.0,1.15352661]
[1756923433766,0.00146809,112550.0,112540.0,1.15652661]
[1756923434263,0.00046809,112550.0,112540.0,1.30512661]
[1756923434487,0.17816689,112550.0,112540.0,0.82613058]
[1756923434691,0.00346809,112550.0,112540.0,0.83213058]
[1756923435122,0.00346809,112550.0,112540.0,0.68061058]
[1756923435298,0.00346809,112550.0,112540.0,0.83217058]
[1756923438602,0.00346809,112550.0,112540.0,0.83205058]
[1756923439228,0.18116689,112550.0,112540.0,0.68061058]
[1756923439455,0.18116689,112550.0,112540.0,0.83201058]
[1756923441144,0.00346809,112550.0,112540.0,0.83201058]
[1756923441789,0.18116689,112550.0,112540.0,0.83201058]
[1756923442679,0.18116689,112550.0,112540.0,0.68061058]
[1756923442883,0.18116689,112550.0,112540.0,0.83193058]
[1756923444846,0.18316689,112550.0,112540.0,0.40797]
[1756923445053,0.66511292,112550.0,112540.0,0.55744]
[1756923445269,0.69182547,112550.0,112540.0,0.55744]
[1756923446836,0.21290944,112550.0,112540.0,0.55744]
[1756923447927,0.20987944,112550.0,112540.0,0.55949]
[1756923448147,0.21290944,112550.0,112540.0,0.15744]
[1756923448353,0.20987944,112550.0,112540.0,0.15949]
[1756923448556,0.20987944,112550.0,112540.0,0.55949]
[1756923448740,0.20787944,112550.0,112540.0,0.74034459]
[1756923449453,0.03018064,112550.0,112540.0,0.74034459]
[1756923449832,0.20787944,112550.0,112540.0,0.74034459]
[1756923450050,0.18116689,112550.0,112540.0,0.74034459]
[1756923450255,0.18316689,112550.0,112540.0,0.56263]
[1756923450459,0.18116689,112550.0,112540.0,0.56263]
[1756923450891,0.18116689,112550.0,112540.0,0.74034459]
[1756923451521,0.18116689,112550.0,112540.0,0.34034459]
[1756923451724,0.18316689,112550.0,112540.0,0.16263]
[1756923452127,0.18316689,112550.0,112540.0,0.56263]
[1756923452330,0.18316689,112550.0,112540.0,0.74034459]
[1756923453467,0.18116689,112550.0,112540.0,0.74034459]
[1756923454565,0.18316689,112550.0,112540.0,0.74034459]
[1756923454796,0.5417124,112550.0,112540.0,0.16263]
[1756923455009,0.5447424,112550.0,112540.0,0.15728]
[1756923455226,0.5447424,112550.0,112540.0,0.006]
[1756923455433,0.5447424,112550.0,112540.0,0.15728]
[1756923455658,0.21290973,112550.0,112540.0,0.15728]
[1756923455844,0.57045524,112550.0,112540.0,0.15328]
[1756923456059,0.56945524,112550.0,112540.0,0.002]
[1756923456262,0.56945524,112550.0,112540.0,0.15328]
[1756923456407,0.57045524,112550.0,112540.0,0.15428]
[1756923457000,0.56742524,112550.0,112540.0,0.33404459]
[1756923457217,0.56742524,112550.0,112540.0,0.33718459]
[1756923457514,0.20887973,112550.0,112540.0,0.33718459]
[1756923457719,0.20887973,112550.0,112540.0,0.15947]
[1756923458083,0.5407124,112550.0,112540.0,0.15633]
[1756923458305,0.5407124,112550.0,112540.0,0.15233]
[1756923458798,0.5407124,112550.0,112540.0,0.33004459]
[1756923458987,0.5407124,112550.0,112540.0,0.15233]
[1756923459424,0.5407124,112550.0,112540.0,0.55028]
[1756923459658,0.5407124,112550.0,112540.0,0.72996459]
[1756923459865,0.5407124,112550.0,112540.0,0.55225]
[1756923461244,0.18016689,112550.0,112540.0,0.73318459]
[1756923461428,0.18217689,112550.0,112540.0,0.72996459]
[1756923461986,0.18217689,112550.0,112540.0,0.55225]
[1756923462605,0.18217689,112550.0,112540.0,0.15225]
[1756923463221,0.5436724,112550.0,112540.0,0.55028]
[1756923463394,0.5436724,112550.0,112540.0,0.15028]
[1756923463644,0.5436724,112550.0,112540.0,0.001]
[1756923463863,1.3578839,112550.0,112540.0,0.001]
[1756923465890,0.64079288,112550.0,112540.0,0.001]
[1756923466111,1.3578839,112550.0,112540.0,0.001]
[1756923467071,1.5089639,112550.0,112540.0,0.001]
[1756923470572,1.5088839,112550.0,112540.0,0.001]
[1756923471073,0.52512689,112550.0,112540.0,0.001]
[1756923471306,0.52512689,112550.0,112540.0,0.00619]
[1756923471307,1.0296724,112550.0,112540.0,0.00619]
[1756923471747,1.0316824,112550.0,112540.0,0.00619]
[1756923472250,1.0316824,112550.0,112540.0,0.00297]
[1756923472468,1.0296724,112550.0,112540.0,0.00619]
[1756923472660,1.0316824,112550.0,112540.0,0.00297]
[1756923473106,0.52217689,112550.0,112540.0,0.00297]
[1756923473323,1.0296324,112550.0,112540.0,0.00619]
[1756923473612,1.0345924,112550.0,112540.0,0.001]
[1756923474571,0.8836724,112550.0,112540.0,0.001]
[1756923474815,1.0346324,112550.0,112540.0,0.001]
[1756923478370,0.52217689,112550.0,112540.0,0.00297]
[1756923478608,1.0296324,112550.0,112540.0,0.00619]
[1756923478847,1.0295924,112550.0,112540.0,0.00619]
[1756923479047,1.0316024,112550.0,112540.0,0.00619]
[1756923479335,1.0316024,112550.0,112540.0,0.00297]
[1756923479815,1.0316024,112550.0,112540.0,0.00619]
[1756923480237,1.0316024,112550.0,112540.0,0.00297]
[1756923480698,1.0316024,112550.0,112540.0,0.001]
[1756923480901,1.0345524,112550.0,112540.0,0.001]
[1756923484773,0.17773038,112530.0,112520.0,1.05031725]
[1756923484975,0.17773038,112530.0,112520.0,1.05228725]
[1756923485830,0.68715442,112540.0,112520.0,1.05228725]
[1756923486086,0.17772891,112540.0,112520.0,1.04906725]
[1756923486273,0.17772891,112540.0,112530.0,0.00322]
[1756923486568,0.17772891,112540.0,112530.0,0.00519]
[1756923487137,0.17972891,112540.0,112530.0,0.00519]
[1756923487386,0.17972891,112540.0,112530.0,0.18292038]
[1756923487616,0.17971459,112540.0,112530.0,0.54146589]
[1756923487750,0.17971459,112540.0,112530.0,0.94146589]
[1756923488124,0.18071459,112540.0,112530.0,0.55899]
[1756923488345,0.5392701,112540.0,112530.0,0.40497]
[1756923488562,0.5392701,112540.0,112530.0,0.55581]
[1756923488735,0.5412701,112540.0,112530.0,0.55903]
[1756923489734,0.5412701,112540.0,112530.0,0.40819]
[1756923489967,0.5412701,112540.0,112530.0,0.55915]
[1756923490177,0.90305561,112540.0,112530.0,0.15388]
[1756923490406,1.24305561,112540.0,112530.0,0.003]
[1756923495595,1.39381561,112540.0,112530.0,0.003]
[1756923497667,0.67139459,112540.0,112530.0,0.00814]
[1756923497877,1.0299401,112540.0,112530.0,0.00814]
[1756923498535,1.0319701,112540.0,112530.0,0.00814]
[1756923498947,1.0319701,112540.0,112530.0,0.00515]
[1756923499093,1.0352101,112540.0,112530.0,0.003]
[1756923499299,1.39375561,112540.0,112530.0,0.003]
[1756923500543,0.17774617,112520.0,112510.0,0.79975122]
[1756923500758,0.17774617,112520.0,112510.0,0.62414]
[1756923501206,0.17774617,112520.0,112510.0,0.62422]
[1756923501380,0.17774617,112520.0,112510.0,0.80198197]
[1756923501846,0.17874617,112520.0,112510.0,0.62822]
[1756923502170,0.18074617,112520.0,112510.0,0.62922]
[1756923502576,0.18074617,112520.0,112510.0,0.22922]
[1756923503178,0.18074617,112520.0,112510.0,0.62922]
[1756923504661,0.18980606,112520.0,112510.0,0.62922]
[1756923505479,0.18980606,112520.0,112510.0,0.01014]
[1756923505480,0.55038157,112520.0,112510.0,0.01014]
[1756923505721,0.55038157,112520.0,112510.0,0.15779]
[1756923505996,1.40280708,112520.0,112510.0,0.005]
[1756923509245,1.49472307,112520.0,112510.0,0.005]
[1756923511599,1.49456307,112520.0,112510.0,0.005]
[1756923512939,0.77747205,112520.0,112510.0,0.005]
[1756923513145,1.49456307,112520.0,112510.0,0.005]
[1756923513620,1.25600842,112520.0,112510.0,0.005]
[1756923515325,1.82646078,112520.0,112510.0,0.005]
[1756923515882,1.89478078,112520.0,112510.0,0.005]
[1756923516111,1.89378078,112520.0,112510.0,0.001]
[1756923516959,1.89382078,112520.0,112510.0,0.001]
[1756923517918,0.17777777,112500.0,112490.0,0.00299]
[1756923518171,0.80683414,112500.0,112490.0,0.00299]
[1756923518428,0.80683414,112500.0,112490.0,0.00514]
[1756923518771,0.65631414,112500.0,112490.0,0.00514]
[1756923518978,0.80683414,112500.0,112490.0,0.00514]
[1756923519186,0.80683414,112500.0,112490.0,0.00526456]
[1756923519394,0.80883414,112500.0,112490.0,0.00726456]
[1756923519602,0.33029777,112500.0,112490.0,0.00726456]
[1756923520492,0.33243777,112500.0,112490.0,0.00427456]
[1756923520702,0.84160464,112500.0,112490.0,0.00427456]
[1756923520881,0.81097414,112500.0,112490.0,0.00427456]
[1756923521723,0.81097414,112500.0,112490.0,0.00744456]
[1756923522797,0.81097414,112500.0,112490.0,0.00427456]
[1756923523987,0.66045414,112500.0,112490.0,0.00744456]
[1756923524311,0.17977777,112500.0,112490.0,0.00744456]
[1756923527322,0.17977777,112500.0,112490.0,0.48598093]
[1756923527524,0.17977777,112500.0,112490.0,0.15796456]
[1756923527723,0.17977777,112500.0,112490.0,0.16018697]
[1756923528822,0.17977777,112500.0,112490.0,0.56018697]
[1756923529054,0.17977777,112500.0,112490.0,0.55796456]
[1756923530110,0.17977777,112500.0,112490.0,0.73575814]
[1756923530292,0.17977777,112500.0,112490.0,0.55796456]
[1756923530488,0.17977777,112500.0,112490.0,0.73575814]
[1756923530987,0.17977777,112500.0,112490.0,0.55796456]
[1756923532031,0.17977777,112500.0,112490.0,0.15796456]
[1756923532167,0.17977777,112500.0,112490.0,0.16018697]
[1756923532607,0.17977777,112500.0,112490.0,0.56018697]
[1756923532778,0.17977777,112500.0,112490.0,0.55796456]
[1756923534395,0.18191777,112500.0,112490.0,0.40744456]
[1756923534600,0.18191777,112500.0,112490.0,0.00212456]
[1756923534601,0.66340414,112500.0,112490.0,0.00212456]
[1756923534814,0.75532013,112500.0,112490.0,0.00212456]
[1756923535028,1.00340414,112500.0,112490.0,0.00212456]
[1756923538440,1.09532013,112500.0,112490.0,0.00212456]
[1756923540134,1.24584013,112500.0,112490.0,0.00212456]
[1756923540891,1.28996895,112500.0,112490.0,0.00212456]
[1756923541102,1.38188494,112500.0,112490.0,0.00212456]
[1756923542343,1.38088494,112500.0,112490.0,0.00212456]
[1756923542705,1.37988494,112500.0,112490.0,0.00012456]
[1756923542895,1.38288494,112500.0,112490.0,0.00012456]
[1756923543156,1.38388494,112500.0,112490.0,0.00112456]
[1756923543391,1.23336494,112500.0,112490.0,0.00112456]
[1756923543593,1.38452494,112500.0,112490.0,0.00112456]
[1756923544078,1.29256895,112500.0,112490.0,0.00112456]
[1756923544519,1.09437013,112500.0,112490.0,0.00112456]
[1756923544725,1.24844013,112500.0,112490.0,0.00112456]
[1756923545422,1.24553013,112500.0,112490.0,0.00317456]
[1756923545602,1.24848013,112500.0,112490.0,0.00112456]
[1756923545806,1.34039612,112500.0,112490.0,0.00112456]
[1756923549374,1.18923612,112500.0,112490.0,0.00112456]
[1756923549632,1.24541013,112500.0,112490.0,0.00327456]
[1756923549867,1.09437013,112500.0,112490.0,0.00327456]
[1756923550080,1.24541013,112500.0,112490.0,0.00634456]
[1756923550328,1.24541013,112500.0,112490.0,0.00327456]
[1756923550966,1.24541013,112500.0,112490.0,0.00112456]
[1756923551172,1.24843013,112500.0,112490.0,0.00112456]
[1756923551596,1.24541013,112500.0,112490.0,0.00327456]
[1756923552080,0.61369376,112500.0,112490.0,0.00634456]
[1756923552307,1.24319013,112500.0,112490.0,0.00634456]
[1756923552655,0.27369376,112500.0,112490.0,0.00634456]
[1756923552894,0.18177777,112500.0,112490.0,0.00634456]
[1756923553142,0.33277777,112500.0,112490.0,0.00634456]
[1756923553391,0.67277777,112500.0,112490.0,0.00634456]
[1756923553603,0.18177777,112500.0,112490.0,0.18636055]
[1756923553861,0.18177777,112500.0,112490.0,0.66267451]
[1756923554068,0.18177777,112500.0,112490.0,0.18413814]
[1756923554260,0.18177777,112500.0,112490.0,0.00634456]
[1756923555281,0.18177777,112500.0,112490.0,0.18636055]
[1756923555495,0.18177777,112500.0,112490.0,0.18413814]
[1756923555743,0.18177777,112500.0,112490.0,0.58413814]
[1756923555985,0.18177777,112500.0,112490.0,0.40634456]
[1756923556513,0.18177777,112500.0,112490.0,0.00112456]
[1756923556514,1.15804375,112500.0,112490.0,0.00112456]
[1756923556777,1.09734013,112500.0,112490.0,0.00112456]
[1756923562589,1.24818013,112500.0,112490.0,0.00112456]
[1756923563415,0.76964376,112500.0,112490.0,0.00112456]
[1756923563630,1.24818013,112500.0,112490.0,0.00112456]
[1756923564094,1.2610235,112500.0,112490.0,0.00112456]
[1756923566451,1.09432013,112500.0,112490.0,0.00327456]
[1756923566686,1.24810013,112500.0,112490.0,0.00112456]
[1756923568313,0.76654376,112500.0,112490.0,0.00327456]
[1756923568538,1.24810013,112500.0,112490.0,0.00112456]
[1756923572253,1.24508013,112500.0,112490.0,0.00327456]
[1756923572753,1.24508013,112500.0,112490.0,0.00112456]
[1756923572960,1.26458583,112500.0,112490.0,0.00112456]
[1756923573163,1.26760583,112500.0,112490.0,0.00112456]
[1756923573581,1.50718792,112500.0,112490.0,0.00112456]
[1756923574884,1.35642792,112500.0,112490.0,0.00112456]
[1756923575186,1.33390222,112500.0,112490.0,0.00327456]
[1756923575395,1.48458222,112500.0,112490.0,0.00634456]
[1756923576159,1.48454222,112500.0,112490.0,0.00327456]
[1756923576400,1.48454222,112500.0,112490.0,0.00634456]
[1756923576761,1.48756222,112500.0,112490.0,0.00112456]
[1756923577217,1.56808926,112500.0,112490.0,0.00112456]
[1756923577418,1.41744926,112500.0,112490.0,0.00112456]
[1756923577676,1.63342926,112500.0,112490.0,0.00327456]
[1756923577879,1.55290222,112500.0,112490.0,0.00327456]
[1756923578287,1.55592222,112500.0,112490.0,0.00112456]
[1756923586066,1.57686104,112500.0,112490.0,0.00112456]
[1756923586248,1.93592027,112500.0,112490.0,0.00112456]
[1756923586658,0.85874258,112500.0,112490.0,0.00112456]
[1756923586808,2.02783626,112500.0,112490.0,0.00112456]
[1756923588244,2.04702194,112500.0,112490.0,0.00112456]
[1756923588459,2.49572116,112500.0,112490.0,0.00112456]
[1756923589851,2.58961899,112500.0,112490.0,1e-08]
[1756923590078,2.59965341,112500.0,112490.0,1e-08]
[1756923590275,2.56945116,112500.0,112490.0,1e-08]
[1756923591323,1.61592589,112480.0,112470.0,1e-08]
[1756923591589,1.96954277,112480.0,112470.0,0.00012517]
[1756923591840,1.97464277,112480.0,112470.0,0.00012517]
[1756923592839,1.97964277,112480.0,112470.0,0.00012517]
[1756923593268,0.51784101,112460.0,112450.0,0.0004]
[1756923593471,1.47847546,112460.0,112450.0,0.00044678]
[1756923593678,1.47847546,112460.0,112450.0,0.00253678]
[1756923593679,1.48058546,112460.0,112450.0,0.00253678]
[1756923594219,1.32787546,112460.0,112450.0,0.00558678]
[1756923594341,1.47947546,112460.0,112450.0,0.00658678]
[1756923594560,1.32887546,112460.0,112450.0,0.00658678]
[1756923595019,1.47947546,112460.0,112450.0,0.00658678]
[1756923595431,1.48047546,112460.0,112450.0,0.00658678]
[1756923596610,1.32987546,112460.0,112450.0,0.00658678]
[1756923596876,1.48047546,112460.0,112450.0,0.00658678]
[1756923598333,1.32987546,112460.0,112450.0,0.00658678]
[1756923598503,1.12141623,112460.0,112450.0,0.00658678]
[1756923599499,0.97081623,112460.0,112450.0,0.00658678]
[1756923599939,0.51984101,112460.0,112450.0,0.00658678]
[1756923600084,0.67044101,112460.0,112450.0,0.00658678]
[1756923600291,0.67044101,112460.0,112450.0,0.36564601]
[1756923600292,0.51984101,112460.0,112450.0,0.36564601]
[1756923600474,0.17984101,112460.0,112450.0,0.54350283]
[1756923601282,0.17984101,112460.0,112450.0,0.00658678]
[1756923601488,0.17984101,112460.0,112450.0,0.40658678]
[1756923602390,0.17984101,112460.0,112450.0,0.00658678]
[1756923602605,0.68950024,112460.0,112450.0,0.00658678]
[1756923603330,0.33044101,112460.0,112450.0,0.00658678]
[1756923603568,0.68950024,112460.0,112450.0,0.00658678]